bitfinex-derivatives/quotes_ETHF0:USTF0_20251024
["timestamp","ask_amount","ask_price","bid_price","bid_amount"]
[1761278648279,1.24934,3888.2,3888.1,9.8347]
[1761278649878,1.24934,3888.2,3888.1,9.4832]
[1761278650771,1.24934,3888.2,3888.1,9.94605]
[1761278652170,1.24934,3888.2,3888.1,10.29755]
[1761278652870,0.7865,3888.2,3888.1,10.29755]
[1761278653066,0.3374,3888.2,3888.1,10.29755]
[1761278658177,1.04284,3889.0,3888.9,0.7847]
[1761278658670,1.38024,3889.0,3888.9,0.7847]
[1761278659180,0.9175,3889.0,3888.9,1.24746]
[1761278659573,1.38024,3889.0,3888.9,0.4332]
[1761278659773,2.12500406,3889.0,3888.9,0.4332]
[1761278660782,2.12500406,3889.0,3888.9,0.89596]
[1761278660978,2.12500406,3889.0,3888.9,0.4332]
[1761278664685,1.38024,3889.0,3888.9,0.4332]
[1761278667774,1.38024,3889.0,3888.8,9.052]
[1761278667775,1.22286,3888.9,3888.8,9.052]
[1761278667978,1.22286,3888.9,3888.8,9.281]
[1761278668181,1.22286,3888.9,3888.8,9.8609]
[1761278669383,1.22286,3888.9,3888.8,9.5106]
[1761278671588,1.42741484,3888.9,3888.8,9.5106]
[1761278672590,1.42741484,3888.9,3888.8,9.8401]
[1761278672789,1.42741484,3888.9,3888.8,10.30287]
[1761278672979,0.327,3888.9,3888.8,10.30287]
[1761278673477,0.5532,3888.9,3888.8,10.30287]
[1761278674091,0.75794248,3888.9,3888.8,10.30287]
[1761278674590,1.22070248,3888.9,3888.8,10.30287]
[1761278675384,0.20474248,3888.9,3888.8,10.30287]
[1761278675686,1.3875729,3889.2,3889.1,0.4408]
[1761278675687,1.23092,3889.2,3889.1,0.4408]
[1761278675990,1.43573092,3889.2,3889.1,9.4918]
[1761278676190,1.43573092,3889.2,3889.1,9.8213]
[1761278676391,0.99213092,3889.2,3889.1,10.28403]
[1761278682291,0.20481092,3889.2,3889.1,10.28403]
[1761278684790,0.78729,3889.5,3889.4,1.233]
[1761278684991,1.00451375,3889.5,3889.4,13.4908]
[1761278685696,0.67991375,3889.5,3889.4,13.4908]
[1761278686698,1.00451375,3889.5,3889.4,13.4908]
[1761278687301,0.67991375,3889.5,3889.4,13.4908]
[1761278687702,1.00451375,3889.5,3889.4,13.4908]
[1761278688197,0.21722375,3889.5,3889.4,13.4908]
[1761278691500,5.21764132,3889.9,3889.8,0.7703]
[1761278691690,5.43474507,3889.9,3889.8,9.8193]
[1761278691896,5.43474507,3889.9,3889.8,10.28195]
[1761278693606,5.89738507,3889.9,3889.8,13.48975]
[1761278694402,6.22198507,3889.9,3889.8,13.69892282]
[1761278695402,6.22198507,3889.9,3889.8,13.48975]
[1761278698907,6.22198507,3889.9,3889.8,10.28195]
[1761278699111,6.22198507,3889.9,3889.8,13.48975]
[1761278700005,5.43474507,3889.9,3889.8,13.48975]
[1761278700304,5.76044507,3889.9,3889.8,13.48975]
[1761278701008,5.54334132,3889.9,3889.8,13.48975]
[1761278703702,5.21764132,3889.9,3889.8,13.48975]
[1761278706012,5.54334132,3889.9,3889.8,13.48975]
[1761278707417,5.76094132,3889.9,3889.8,13.48975]
[1761278707915,5.76094132,3889.9,3889.4,1.81843031]
[1761278707916,1.36059,3889.5,3889.4,4.36336054]
[1761278708118,0.8979,3889.5,3889.4,13.51039]
[1761278708412,0.8979,3889.5,3889.4,13.71951274]
[1761278708413,1.22839,3889.5,3889.4,13.71951274]
[1761278709218,0.7657,3889.5,3889.4,13.51039]
[1761278709819,0.3257,3889.5,3889.4,13.51039]
[1761278710318,0.3257,3889.5,3889.4,13.71479445]
[1761278711026,0.78839,3889.5,3889.4,13.71479445]
[1761278711216,1.00599,3889.5,3889.4,13.51039]
[1761278711616,0.5433,3889.5,3889.4,13.51039]
[1761278711819,0.5433,3889.5,3889.4,13.71472496]
[1761278712322,0.5433,3889.5,3889.4,14.4075955]
[1761278715326,1.00599,3889.5,3889.4,14.20326054]
[1761278716029,1.36059,3889.5,3889.4,13.41057054]
[1761278716529,1.57161574,3889.5,3889.4,13.74057054]
[1761278716720,1.57161574,3889.5,3889.4,12.2548]
[1761278717027,0.46273,3889.1,3889.0,1.39021054]
[1761278717230,1.22843,3889.1,3889.0,10.43721054]
[1761278717429,0.7657,3889.1,3889.0,10.43721054]
[1761278717822,0.7657,3889.1,3889.0,9.74434]
[1761278718017,0.7657,3889.1,3889.0,10.30264]
[1761278719234,1.22843,3889.1,3889.0,10.30264]
[1761278720428,0.7657,3889.1,3889.0,10.30264]
[1761278720629,0.46269,3889.5,3889.4,1.25559]
[1761278720829,0.67359902,3889.5,3889.4,1.25559]
[1761278721025,1.21689902,3889.5,3889.4,1.25559]
[1761278721231,0.7884,3889.4,3889.3,9.047]
[1761278721435,1.43930902,3889.4,3889.3,9.047]
[1761278721936,1.43930902,3889.4,3889.3,9.74431]
[1761278722432,1.43927021,3889.4,3889.3,9.74431]
[1761278723832,1.43927021,3889.4,3889.3,9.2816]
[1761278724033,1.43927021,3889.4,3889.3,9.74431]
[1761278725432,1.43927021,3889.4,3889.3,9.2816]
[1761278725831,1.43927021,3889.4,3889.3,9.047]
[1761278726031,1.43927021,3889.4,3889.3,9.50971]
[1761278726234,1.43927021,3889.4,3889.3,9.74431]
[1761278726735,1.43927021,3889.4,3889.3,9.2816]
[1761278728826,1.43927021,3889.4,3889.3,9.74431]
[1761278729028,1.43927021,3889.4,3889.3,10.32401]
[1761278729437,1.21687021,3889.4,3889.3,10.32401]
[1761278733143,1.43897021,3889.4,3889.3,10.32401]
[1761278734843,0.21087021,3889.4,3889.3,10.32401]
[1761278735137,1.47417021,3889.4,3889.3,9.8547]
[1761278735334,1.47417021,3889.4,3889.3,9.5033]
[1761278735534,1.47417021,3889.4,3889.3,9.8547]
[1761278736543,1.47417021,3889.4,3889.3,10.31741]
[1761278737040,1.47417021,3889.4,3889.3,9.8547]
[1761278737234,1.47417021,3889.4,3889.3,9.047]
[1761278737636,1.47417021,3889.4,3889.3,9.72291]
[1761278737837,1.47417021,3889.4,3889.3,10.29601]
[1761278739145,1.47427358,3889.4,3889.3,10.29601]
[1761278739847,0.56387358,3889.4,3889.3,10.29601]
[1761278741336,0.21097358,3889.4,3889.3,11.04075845]
[1761278747040,0.21097358,3889.4,3889.3,11.7348074]
[1761278749452,0.21097358,3889.4,3889.3,10.99005895]
[1761278749647,0.21097358,3889.4,3889.3,11.7348074]
[1761278751946,0.21097358,3889.4,3889.3,11.04075845]
[1761278752751,0.21097358,3889.4,3889.3,11.73463995]
[1761278752943,0.56387358,3889.4,3889.3,11.73463995]
[1761278753546,0.78947358,3889.4,3889.3,11.73463995]
[1761278754452,0.56387358,3889.4,3889.3,11.73463995]
[1761278754845,0.21097358,3889.4,3889.3,11.73463995]
[1761278759252,0.21097358,3889.4,3889.3,11.04075845]
[1761278759468,0.81272392,3889.9,3889.8,1.24405]
[1761278759750,1.25060939,3889.9,3889.8,10.29005]
[1761278761549,1.25059939,3889.9,3889.8,10.29005]
[1761278761951,1.48359939,3889.9,3889.8,10.29005]
[1761278763745,0.21405939,3889.9,3889.8,10.29005]
[1761278764254,0.00277392,3889.9,3889.8,10.29005]
[1761278767257,0.00277392,3889.9,3889.8,10.98242237]
[1761278770062,0.46258,3890.4,3890.3,1.24399]
[1761278770258,0.68914,3890.7,3890.6,0.4572]
[1761278770558,1.13299167,3890.7,3890.6,0.7814]
[1761278771060,1.48306009,3890.7,3890.6,0.783955]
[1761278771665,1.48306009,3890.7,3890.6,0.459755]
[1761278774062,3.2078,3893.4,3890.7,0.3242]
[1761278774362,0.1303,3894.5,3893.5,0.0864]
[1761278774570,0.5739,3894.3,3894.2,0.7814]
[1761278774761,0.8069,3894.3,3894.2,1.14889046]
[1761278774963,0.94020581,3894.3,3894.2,1.1511267]
[1761278775461,0.94020581,3894.3,3894.2,1.4753267]
[1761278776266,0.94020581,3894.3,3894.2,0.78363624]
[1761278776567,0.94020581,3894.3,3894.2,1.48348599]
[1761278777370,0.94020581,3894.3,3894.2,0.78363624]
[1761278780269,3.2078,3896.9,3895.0,0.1409]
[1761278780569,0.46193,3895.9,3895.8,0.558]
[1761278780766,0.4596,3895.9,3895.8,0.7814]
[1761278781271,0.46147332,3895.9,3895.8,0.7814]
[1761278782467,0.80877332,3895.9,3895.8,0.7814]
[1761278782869,0.00187332,3895.9,3895.8,0.7814]
[1761278783669,0.8069,3897.1,3897.0,0.7814]
[1761278783870,1.55164845,3897.1,3897.0,0.2338]
[1761278784075,1.26872,3896.8,3896.7,0.558]
[1761278784372,2.01346845,3896.8,3896.7,0.7814]
[1761278784768,2.01669272,3896.8,3896.7,0.7840415]
[1761278785076,2.01669272,3896.8,3896.7,0.2364415]
[1761278786070,1.27194427,3896.8,3896.7,0.2364415]
[1761278786267,2.01669272,3896.8,3896.7,0.0026415]
[1761278786474,0.00322427,3896.8,3896.7,3.9918415]
[1761278787073,0.46504427,3896.8,3896.7,3.9918415]
[1761278787376,0.69164427,3896.8,3896.7,3.9918415]
[1761278787564,0.22982427,3896.8,3896.7,3.9918415]
[1761278789373,0.00322427,3896.8,3896.7,3.9918415]
[1761278789877,0.022,3897.8,3897.7,1.0192]
[1761278790173,0.77501,3897.8,3897.7,1.0192]
[1761278790377,1.20791,3897.8,3897.7,1.0192]
[1761278790769,0.77501,3897.8,3897.7,1.0192]
[1761278791070,0.77808313,3897.8,3897.7,1.0192]
[1761278792076,1.21098313,3897.8,3897.7,1.0192]
[1761278792279,1.50758313,3897.8,3897.7,1.0192]
[1761278794266,1.07468313,3897.8,3897.7,1.0192]
[1761278794471,0.77808313,3897.8,3897.7,1.0192]
[1761278796078,1.21098313,3897.8,3897.7,1.0192]
[1761278796275,1.50758313,3897.8,3897.7,1.0192]
[1761278796580,1.50758313,3897.8,3897.7,0.2983]
[1761278796879,1.50758313,3897.8,3897.5,3.2078]
[1761278796880,1.48252,3897.6,3897.5,3.9469]
[1761278797270,1.48256,3897.3,3897.2,1.0192]
[1761278797580,1.04966,3897.3,3897.2,1.0192]
[1761278797989,1.48256,3897.3,3897.2,1.0192]
[1761278800977,1.48256,3897.3,3897.2,1.74761757]
[1761278803682,1.48256,3897.3,3897.2,2.65744176]
[1761278804375,9.69036,3897.3,3897.2,0.12448757]
[1761278804571,9.86972597,3897.3,3897.2,0.80856322]
[1761278804777,1.48262,3896.8,3896.7,0.7417415]
[1761278806181,1.48262,3896.8,3896.7,0.3009415]
[1761278806382,1.66220383,3896.8,3896.7,0.3009415]
[1761278806776,1.66220383,3896.8,3896.7,0.0026415]
[1761278806977,1.66220383,3896.8,3896.7,1.0218415]
[1761278807783,1.66220383,3896.8,3896.7,0.3009415]
[1761278807982,1.66220383,3896.8,3896.7,0.0026415]
[1761278808784,1.48267,3896.4,3896.3,0.68407565]
[1761278808985,1.66225383,3896.4,3896.3,0.98237565]
[1761278809282,1.66225383,3896.4,3896.3,1.42317565]
[1761278809876,1.66225383,3896.4,3896.3,1.42503586]
[1761278810387,1.66225383,3896.4,3896.3,1.65292214]
[1761278810593,1.66225383,3896.4,3896.3,1.93302214]
[1761278810887,1.66225383,3896.4,3896.3,1.02106021]
[1761278813087,1.66308929,3896.4,3896.3,1.02106021]
[1761278813793,1.66308929,3896.4,3896.3,1.70931243]
[1761278814584,1.66308929,3896.4,3896.3,1.02106021]
[1761278817478,1.66308929,3896.4,3896.3,0.30016021]
[1761278817684,1.66308929,3896.4,3896.3,0.00186021]
[1761278820981,1.02012,3895.9,3895.8,0.68799805]
[1761278821185,1.59037,3895.5,3895.4,3.2078]
[1761278821383,1.59037,3895.5,3895.1,1.12040983]
[1761278821384,0.2964,3895.3,3895.2,0.68799805]
[1761278821585,1.42299,3895.3,3895.2,1.38249805]
[1761278821982,0.5582,3896.4,3895.8,0.4086]
[1761278822182,0.75826,3896.4,3896.3,0.5455]
[1761278822386,0.4619,3896.1,3896.0,0.68805543]
[1761278822586,1.60320717,3896.1,3896.0,0.2859]
[1761278822788,1.60320717,3896.1,3895.8,3.6164]
[1761278822789,1.02012,3895.9,3895.8,4.59035543]
[1761278822986,1.42292,3895.9,3895.8,4.59035543]
[1761278823187,1.42292,3895.9,3895.8,4.1619]
[1761278826498,1.42292,3895.9,3895.8,0.9541]
[1761278828801,1.42295,3895.7,3895.6,0.2859]
[1761278828995,1.42295,3895.7,3895.6,0.6945]
[1761278832193,1.42295,3895.7,3895.6,0.9541]
[1761278833496,1.02015,3895.7,3895.6,0.9541]
[1761278834111,1.42295,3895.7,3895.6,0.9541]
[1761278837212,1.60476645,3895.7,3895.6,0.9541]
[1761278837897,1.16117,3895.5,3895.4,3.9023]
[1761278838102,1.42297,3895.5,3895.4,3.9023]
[1761278838915,1.59037,3895.5,3895.4,3.4937]
[1761278839110,0.46199,3895.3,3895.2,0.00314671]
[1761278839406,1.60479832,3895.3,3895.2,0.00314671]
[1761278841911,1.59043,3895.0,3894.9,3.2078]
[1761278842511,1.59043,3895.0,3894.9,3.4937]
[1761278842812,1.59316993,3895.0,3894.9,3.90561683]
[1761278846106,1.59316993,3895.0,3894.9,3.49701683]
[1761278846406,1.59316993,3895.0,3894.9,0.00331683]
[1761278846606,1.77478755,3895.0,3894.9,0.00331683]
[1761278846920,2.66530166,3895.0,3894.9,0.00331683]
[1761278850725,2.51752316,3895.0,3894.9,0.00331683]
[1761278851115,2.33590554,3895.0,3894.9,0.00331683]
[1761278853920,10.57276993,3895.0,3894.9,0.83171683]
[1761278854625,10.71416993,3895.0,3894.9,0.83171683]
[1761278854826,10.71416993,3895.0,3894.9,0.58811683]
[1761278855827,10.71416993,3895.0,3894.9,0.23601683]
[1761278856226,10.71416993,3895.0,3894.9,0.00331683]
[1761278858025,10.71416993,3895.0,3894.9,0.58811683]
[1761278858626,10.71416993,3895.0,3894.9,0.23601683]
[1761278858829,10.71416993,3895.0,3894.9,0.00331683]
[1761278859234,10.8957912,3895.0,3894.9,0.00331683]
[1761278863626,10.8857912,3895.0,3894.9,0.00331683]
[1761278864727,10.8857912,3895.0,3894.9,0.58811683]
[1761278865431,10.88598136,3895.0,3894.9,0.58811683]
[1761278866929,10.87898136,3895.0,3894.9,0.58811683]
[1761278868337,10.87916562,3895.0,3894.9,0.58811683]
[1761278868729,10.87916562,3895.0,3894.9,0.23601683]
[1761278868932,10.87916562,3895.0,3894.9,0.00331683]
[1761278869226,10.87616562,3895.0,3894.9,0.00331683]
[1761278871530,10.87416562,3895.0,3894.9,0.00331683]
[1761278872234,11.79511146,3895.0,3894.9,0.00331683]
[1761278876438,0.8476,3894.6,3894.5,0.91740724]
[1761278876625,1.49167569,3894.6,3894.5,0.91740724]
[1761278877334,1.49167569,3894.6,3894.5,0.5848]
[1761278877637,1.49167569,3894.6,3894.5,0.58706455]
[1761278882143,1.25267569,3894.6,3894.5,1.02116455]
[1761278882436,0.00273993,3895.0,3894.9,1.37944]
[1761278883339,0.00273993,3895.0,3894.9,2.30047242]
[1761278885243,0.00273993,3895.0,3894.9,1.37944]
[1761278885737,1.253,3895.5,3895.4,0.46198]
[1761278885946,1.253,3895.5,3895.4,1.37938]
[1761278886130,0.46194,3895.8,3895.6,0.46196]
[1761278886337,0.46194,3895.8,3895.7,0.9174]
[1761278886539,0.87657899,3895.8,3895.7,0.9174]
[1761278886734,0.87657899,3895.8,3895.7,1.37935]
[1761278887037,0.00180912,3895.8,3895.7,1.37935]
[1761278887242,0.00180912,3895.8,3895.7,4.58715]
[1761278891545,1.13094912,3895.8,3895.7,0.9174]
[1761278891739,1.58437,3895.5,3895.4,0.6461]
[1761278895450,1.42172,3895.1,3895.0,0.5091]
[1761278895752,2.16445561,3895.1,3895.0,0.2378]
[1761278895953,2.16445561,3895.1,3895.0,0.6461]
[1761278896945,0.4344,3895.1,3895.0,1.54223]
[1761278897150,1.12918,3895.4,3895.3,0.9174]
[1761278898562,0.2328,3895.4,3895.3,0.9174]
[1761278898760,0.69477,3895.5,3895.4,0.9174]
[1761278899065,1.12917,3895.5,3895.4,0.9174]
[1761278899262,1.58437,3895.5,3895.4,0.2378]
[1761278899469,1.42171,3895.2,3895.1,0.9174]
[1761278901267,0.69481,3895.2,3895.1,0.9174]
[1761278901970,0.46201,3895.2,3895.1,0.9174]
[1761278906276,1.42171,3895.2,3895.1,0.9174]
[1761278918286,0.46203,3895.0,3894.9,4.04154]
[1761278918471,1.33803,3895.0,3894.9,3.8478]
[1761278918780,1.33803,3895.0,3894.9,4.30984]
[1761278918985,1.33803,3895.0,3894.9,4.56534]
[1761278919377,2.01011584,3895.5,3895.4,0.8955]
[1761278919583,1.51506192,3895.5,3895.4,0.8955]
[1761278920675,1.51506192,3895.5,3895.4,0.64]
[1761278920676,1.67006192,3895.5,3895.4,0.64]
[1761278920885,1.338,3895.3,3895.2,0.64]
[1761278921179,1.51509192,3895.3,3895.2,0.64]
[1761278921384,0.71082,3895.2,3895.1,0.3717]
[1761278921578,1.15301192,3895.2,3895.1,0.64]
[1761278922085,1.51511192,3895.2,3895.1,0.8955]
[1761278923084,0.90420192,3895.2,3895.1,0.8955]
[1761278923385,0.90420192,3895.2,3895.1,1.35752]
[1761278924285,0.63910192,3895.2,3895.1,1.35752]
[1761278924681,0.63910192,3895.2,3895.1,0.8955]
[1761278925190,0.46201,3895.2,3895.1,1.35752]
[1761278925388,1.49303,3895.0,3894.9,0.92042264]
[1761278925587,1.33804,3894.9,3894.8,0.64]
[1761278925781,1.51774832,3894.9,3894.8,0.64]
[1761278926984,0.82418,3894.6,3894.5,4.77048719]
[1761278927179,1.51778832,3894.6,3894.5,3.85006455]
[1761278927380,1.51778832,3894.6,3894.5,4.10556455]
[1761278932098,1.51778832,3894.6,3894.5,3.47836455]
[1761278933290,0.90688832,3894.6,3894.5,4.25306455]
[1761278935900,0.64178832,3894.6,3894.5,4.25306455]
[1761278939703,0.17970832,3894.6,3894.5,4.71515455]
[1761278940598,0.46206,3894.8,3894.7,1.30737]
[1761278940902,0.92094584,3895.1,3894.7,1.30737]
[1761278940903,0.46202,3895.1,3895.0,0.9804]
[1761278941093,0.92815552,3895.1,3895.0,0.9804]
[1761278941499,1.25665552,3895.1,3895.0,0.9804]
[1761278942200,0.79463552,3895.1,3895.0,0.9804]
[1761278942399,1.25665552,3895.1,3895.0,0.9804]
[1761278942997,1.25665552,3895.1,3895.0,1.44243]
[1761278944404,0.92815552,3895.1,3895.0,1.44243]
[1761278946107,0.20293552,3895.1,3895.0,1.44243]
[1761278946404,0.20293552,3895.1,3895.0,10.53243]
[1761278948005,0.66495552,3895.1,3895.0,10.53243]
[1761278950101,0.20293552,3895.1,3895.0,10.53243]
[1761278950797,0.66495552,3895.1,3895.0,10.53243]
[1761278955312,1.25665552,3895.1,3895.0,10.53243]
[1761278955512,0.92815552,3895.1,3895.0,10.53243]
[1761278956205,1.25665552,3895.1,3895.0,10.53243]
[1761278956405,0.92815552,3895.1,3895.0,10.53243]
[1761278957705,1.25665552,3895.1,3895.0,10.53243]
[1761278958412,0.92815552,3895.1,3895.0,10.53243]
[1761278958717,1.25665552,3895.1,3895.0,10.53243]
[1761278961617,0.66495552,3895.1,3895.0,10.53243]
[1761278962120,1.25665552,3895.1,3895.0,10.0704]
[1761278963120,1.25665552,3895.1,3895.0,10.53243]
[1761278966126,1.25665552,3895.1,3895.0,10.0704]
[1761278966822,1.47735552,3895.1,3895.0,10.0704]
[1761278967022,1.47735552,3895.1,3895.0,10.53243]
[1761278967224,0.92815552,3895.1,3895.0,10.53243]
[1761278967719,0.66495552,3895.1,3895.0,10.53243]
[1761278969222,0.20293552,3895.1,3895.0,12.11436428]
[1761278969620,0.20293552,3895.1,3895.0,12.34381551]
[1761278970831,0.66495552,3895.1,3895.0,12.34381551]
[1761278972427,0.66495552,3895.1,3895.0,10.53243]
[1761278974523,0.20293552,3895.1,3895.0,10.53243]
[1761278974726,0.66495552,3895.1,3895.0,10.53243]
[1761278974928,0.20293552,3895.1,3895.0,10.53243]
[1761278975631,0.66495552,3895.1,3895.0,10.53243]
[1761278977028,0.66655371,3895.1,3895.0,10.53243]
[1761278977236,0.46202,3895.1,3895.0,10.53243]
[1761278979833,0.46201,3895.3,3895.2,1.2401]
[1761278980028,0.66651969,3895.3,3895.2,1.2401]
[1761278982731,1.23021969,3895.3,3895.2,1.2401]
[1761278983432,0.88141969,3895.3,3895.2,1.2401]
[1761278984233,1.23021969,3895.3,3895.2,1.2401]
[1761278984828,1.46481969,3895.3,3895.2,1.2401]
[1761278985033,1.46481969,3895.3,3895.2,0.462]
[1761278985230,1.26032,3895.1,3895.0,1.24036793]
[1761278985533,1.46482969,3895.1,3895.0,10.31836793]
[1761278987635,1.46482969,3895.1,3895.0,11.00939793]
[1761278987833,1.46663246,3895.1,3895.0,11.00939793]
[1761278989130,1.46663246,3895.1,3895.0,10.31813]
[1761278989432,1.46663246,3895.1,3895.0,11.00918599]
[1761278990735,1.46663246,3895.1,3895.0,11.14358599]
[1761278994538,1.46663246,3895.1,3895.0,10.68155599]
[1761278995531,1.46663246,3895.1,3895.0,11.14358599]
[1761278996329,1.46663246,3895.1,3895.0,10.45253]
[1761278997138,1.46663246,3895.1,3895.0,9.9905]
[1761278999343,1.46663246,3895.1,3895.0,10.45253]
[1761279000541,1.46663246,3895.1,3895.0,9.9905]
[1761279002642,1.46663246,3895.1,3895.0,10.68194979]
[1761279005945,0.20631246,3895.1,3895.0,11.14397979]
[1761279006340,0.66833246,3895.1,3895.0,11.14397979]
[1761279008735,0.20631246,3895.1,3895.0,11.14397979]
[1761279008938,2.19708584,3895.1,3895.0,1.46954979]
[1761279009139,2.19708584,3895.1,3895.0,9.8541]
[1761279009649,2.19708584,3895.1,3895.0,0.9131]
[1761279011149,0.66833246,3895.1,3895.0,0.9131]
[1761279012051,1.23843246,3895.1,3895.0,0.9131]
[1761279013353,1.45473246,3895.1,3895.0,0.9131]
[1761279013551,2.19708584,3895.1,3895.0,0.7781]
[1761279017165,1.45473246,3895.1,3895.0,0.7781]
[1761279017662,1.45473246,3895.1,3895.0,0.9131]
[1761279024268,1.45473246,3895.1,3895.0,0.7781]
[1761279027972,2.19708584,3895.1,3895.0,0.7781]
[1761279032675,3.11838787,3895.1,3895.0,0.5491]
[1761279034877,2.37603449,3895.1,3895.0,0.5491]
[1761279036375,0.46204,3894.9,3894.8,9.2964]
[1761279036580,1.44330865,3894.9,3894.8,9.6204]
[1761279037674,1.44330865,3894.9,3894.8,9.8511]
[1761279038877,1.23664,3894.9,3894.8,9.8511]
[1761279039879,1.4433873,3894.9,3894.8,9.8511]
[1761279046088,0.6687873,3894.9,3894.8,9.8511]
[1761279046392,1.2209873,3894.9,3894.8,9.8511]
[1761279048093,1.4433873,3894.9,3894.8,9.8511]
[1761279048694,1.23667,3894.7,3894.6,1.23584979]
[1761279048887,1.4434173,3894.7,3894.6,1.46654979]
[1761279054803,1.4434173,3894.7,3894.6,0.69144979]
[1761279054988,1.4434173,3894.7,3894.6,0.324]
[1761279055301,2.36436314,3894.7,3894.6,0.7751]
[1761279056196,1.4434173,3894.7,3894.6,0.7751]
[1761279056401,0.8868173,3894.7,3894.6,0.7751]
[1761279057091,0.6688173,3894.7,3894.6,0.7751]
[1761279057292,0.8868173,3894.7,3894.6,0.7751]
[1761279057700,1.2210173,3894.7,3894.6,0.7751]
[1761279058598,1.2210173,3894.7,3894.6,1.23718]
[1761279058900,0.6688173,3894.7,3894.6,0.7751]
[1761279060707,0.66856088,3894.7,3894.6,0.7751]
[1761279061106,0.20649088,3894.7,3894.6,1.23718]
[1761279061498,0.66856088,3894.7,3894.6,1.23718]
[1761279065007,0.20649088,3894.7,3894.6,1.23718]
[1761279066408,0.66856088,3894.7,3894.6,1.23718]
[1761279069608,0.20649088,3894.7,3894.6,1.23718]
[1761279072297,0.46203,3895.0,3894.9,0.46204]
[1761279072499,0.66853765,3895.0,3894.9,1.24204]
[1761279073408,0.46198,3895.4,3895.3,0.322]
[1761279073609,0.66847213,3895.4,3895.3,9.849]
[1761279073812,0.66847213,3895.4,3895.3,10.31099]
[1761279075412,0.66832581,3895.4,3895.3,10.31099]
[1761279079509,0.20634581,3895.4,3895.3,10.31099]
[1761279083410,0.34850912,3895.8,3895.3,10.31099]
[1761279083411,0.00180912,3895.8,3895.7,1.24195]
[1761279083610,0.00180912,3895.8,3895.7,13.51675]
[1761279086706,1.253,3896.7,3896.5,0.46185]
[1761279086906,1.02223,3896.7,3896.6,9.846]
[1761279087108,1.22813673,3896.7,3896.6,9.846]
[1761279087308,1.02223,3896.7,3896.6,9.846]
[1761279087612,0.90119,3897.0,3896.9,0.7863]
[1761279087813,1.11018872,3897.0,3896.9,0.7863]
[1761279088111,0.20899872,3897.0,3896.9,10.31411]
[1761279088308,0.00319092,3897.0,3896.9,10.51850114]
[1761279088509,3.2078,3897.7,3897.5,0.342]
[1761279088714,1.37308449,3898.2,3897.5,0.342]
[1761279088715,0.3378,3897.9,3897.6,9.5093]
[1761279089015,0.5847,3897.8,3897.7,0.7863]
[1761279089404,0.2469,3897.8,3897.7,0.7863]
[1761279089608,0.8052,3897.8,3897.7,0.7863]
[1761279089810,0.80817104,3897.8,3897.7,0.00272497]
[1761279090011,1.01363034,3897.8,3897.7,0.00272497]
[1761279090209,0.80817104,3897.8,3897.7,0.54892497]
[1761279090712,0.57327104,3897.8,3897.7,0.78432497]
[1761279090913,0.81327104,3897.8,3897.7,0.78432497]
[1761279091614,0.02497104,3897.8,3897.7,0.78432497]
[1761279092705,0.02497104,3897.8,3897.7,1.24603497]
[1761279095710,3.2078,3898.6,3898.1,0.46166]
[1761279095909,3.5312,3898.6,3898.5,0.9163]
[1761279096110,3.9961,3898.6,3898.5,0.9163]
[1761279096417,3.9961,3898.6,3898.5,0.7816]
[1761279096819,3.99843333,3898.6,3898.5,0.7816]
[1761279097522,4.46004333,3898.6,3898.5,0.7816]
[1761279099205,4.46004333,3898.6,3898.5,14.9773]
[1761279099206,0.00233333,3898.6,3898.5,14.9773]
[1761279099410,1.015,3898.7,3898.6,0.3273]
[1761279099616,1.2499,3898.7,3898.6,0.5462]
[1761279099816,1.99131019,3898.7,3898.6,0.7816]
[1761279100316,1.99428812,3898.7,3898.6,0.7816]
[1761279100515,0.3234,3898.6,3898.5,9.061]
[1761279100818,0.7883,3898.6,3898.5,9.6072]
[1761279101215,0.7883,3898.6,3898.5,9.8426]
[1761279101415,0.7883,3898.6,3898.5,9.9773]
[1761279101720,1.01797793,3898.7,3898.6,0.7816]
[1761279102320,1.25287793,3898.7,3898.6,0.7816]
[1761279102616,0.79127793,3898.7,3898.6,0.7816]
[1761279105116,1.25286793,3898.7,3898.6,0.7816]
[1761279109619,0.69456793,3898.7,3898.6,0.7816]
[1761279109926,1.01796793,3898.7,3898.6,0.7816]
[1761279111626,1.25286793,3898.7,3898.6,0.7816]
[1761279112325,1.24992,3898.5,3898.4,9.2769]
[1761279112624,1.24992,3898.5,3898.4,9.5123]
[1761279112829,1.24992,3898.5,3898.4,9.8396]
[1761279113226,1.45537998,3898.5,3898.4,9.8396]
[1761279115530,1.58927998,3898.5,3898.4,9.8396]
[1761279115729,1.58927998,3898.5,3898.4,0.7816]
[1761279116027,1.58927998,3898.5,3898.4,0.5462]
[1761279118125,1.45537998,3898.5,3898.4,0.7816]
[1761279118824,1.45537998,3898.5,3898.1,9.057]
[1761279118825,0.23,3898.2,3898.1,0.3273]
[1761279119126,1.45540998,3898.2,3898.1,9.8386]
[1761279121027,1.45540998,3898.2,3898.1,0.7816]
[1761279121332,1.45540998,3898.2,3898.1,9.8386]
[1761279121525,1.45633163,3898.2,3898.1,9.8386]
[1761279122525,1.45633163,3898.2,3898.1,0.7816]
[1761279123423,1.45633163,3898.2,3898.1,0.5462]
[1761279123729,1.45633163,3898.2,3898.1,0.7789]
[1761279126829,0.3227,3898.0,3897.7,0.69167554]
[1761279127031,0.46176,3897.3,3897.2,0.5417]
[1761279127329,1.43934163,3897.3,3897.2,9.8314]
[1761279128023,1.43934163,3897.3,3897.2,9.83343773]
[1761279128231,0.89474163,3897.3,3897.2,9.83343773]
[1761279128725,0.20638163,3897.3,3897.2,10.29520773]
[1761279128932,0.46174,3897.5,3897.4,0.7744]
[1761279129127,0.66800658,3897.5,3897.4,0.7744]
[1761279129427,1.43920658,3897.5,3897.4,0.7744]
[1761279132223,1.57763087,3897.5,3897.4,0.5417]
[1761279132423,1.23296,3897.3,3897.2,0.54373773]
[1761279132632,1.43905087,3897.3,3897.2,9.60073773]
[1761279133336,1.43905087,3897.3,3897.2,0.54373773]
[1761279134430,1.43905087,3897.3,3897.2,0.77643773]
[1761279135929,1.23296,3897.3,3897.2,0.77643773]
[1761279136128,0.91026,3897.3,3897.2,0.77643773]
[1761279136430,0.68836,3897.3,3897.2,0.77643773]